bitfinex-derivatives/quotes_BTCF0:USTF0_20250315
["timestamp","ask_amount","ask_price","bid_price","bid_amount"]
[1742069814890,0.1184791,84403.0,84402.0,0.1294782]
[1742069816285,0.1821791,84403.0,84402.0,0.1294782]
[1742069825296,0.1821791,84403.0,84402.0,0.1623782]
[1742069828385,0.1821791,84403.0,84402.0,0.1929782]
[1742069844396,0.0637,84403.0,84402.0,0.1929782]
[1742069845102,0.0637,84403.0,84402.0,0.3029782]
[1742069845298,0.00195562,84412.0,84411.0,0.1184656]
[1742069845500,0.12041972,84412.0,84411.0,0.5492656]
[1742069845699,0.12041972,84412.0,84411.0,0.6108656]
[1742069846501,0.11864182,84412.0,84411.0,0.6108656]
[1742069846707,0.12064182,84412.0,84411.0,0.6108656]
[1742069847296,0.12164182,84412.0,84411.0,0.6108656]
[1742069847496,0.00317772,84412.0,84411.0,0.6108656]
[1742069852410,0.18554182,84412.0,84411.0,0.6108656]
[1742069853610,0.06707772,84412.0,84411.0,0.6108656]
[1742069854610,0.18554182,84412.0,84411.0,0.6108656]
[1742069855203,0.06707772,84412.0,84411.0,0.6108656]
[1742069856009,0.18554182,84412.0,84411.0,0.6108656]
[1742069858415,0.06707772,84412.0,84411.0,0.6108656]
[1742069861110,0.03407772,84412.0,84411.0,0.6108656]
[1742069861415,0.09545002,84440.0,84411.0,0.6108656]
[1742069861416,0.11508,84430.0,84422.0,0.1184501]
[1742069861612,0.00068,84426.0,84422.0,0.7092501]
[1742069861808,0.0608,84429.0,84422.0,0.7092501]
[1742069862002,0.1200202,84429.0,84422.0,0.7092501]
[1742069862211,0.1200202,84429.0,84428.0,0.1184417]
[1742069863002,0.1200202,84429.0,84428.0,0.1821417]
[1742069864115,0.1200202,84429.0,84428.0,0.19615255]
[1742069864804,0.1250202,84429.0,84428.0,0.19615255]
[1742069865208,0.1310202,84429.0,84428.0,0.19615255]
[1742069869014,0.0718,84429.0,84428.0,0.19615255]
[1742069869323,0.0718,84429.0,84428.0,0.33615255]
[1742069869820,0.1902403,84429.0,84428.0,0.33615255]
[1742069870327,0.1852403,84429.0,84428.0,0.33615255]
[1742069870527,0.1802403,84429.0,84428.0,0.33615255]
[1742069871223,0.1792403,84429.0,84428.0,0.33615255]
[1742069871425,0.1802403,84429.0,84428.0,0.33615255]
[1742069872025,0.1792403,84429.0,84428.0,0.33615255]
[1742069872227,0.1802403,84429.0,84428.0,0.33615255]
[1742069873122,0.0618,84429.0,84428.0,0.33615255]
[1742069875425,0.1802403,84429.0,84428.0,0.33615255]
[1742069875623,0.0618,84429.0,84428.0,0.33615255]
[1742069875824,0.1802403,84429.0,84428.0,0.33615255]
[1742069877230,0.0618,84429.0,84428.0,0.33615255]
[1742069878727,0.1802403,84429.0,84428.0,0.33615255]
[1742069878928,0.0618,84429.0,84428.0,0.33615255]
[1742069879128,0.1802403,84429.0,84428.0,0.33615255]
[1742069882029,0.0618,84429.0,84428.0,0.33615255]
[1742069892435,0.0618,84429.0,84428.0,0.54875404]
[1742069895226,0.0618,84429.0,84428.0,0.33615255]
[1742069896035,0.001,84429.0,84428.0,0.33615255]
[1742069896627,0.066,84429.0,84428.0,0.33615255]
[1742069897335,0.0331,84429.0,84428.0,0.33615255]
[1742069899838,0.0654,84434.0,84430.0,0.0592191]
[1742069900038,0.0654,84434.0,84433.0,0.1184347]
[1742069900336,0.0654,84434.0,84433.0,0.3784347]
[1742069901039,0.0664,84434.0,84433.0,0.3784347]
[1742069901738,0.0674,84434.0,84433.0,0.3784347]
[1742069901938,0.0674,84434.0,84433.0,0.59070239]
[1742069902529,0.0684,84434.0,84433.0,0.59070239]
[1742069904338,0.0684,84434.0,84433.0,0.3784347]
[1742069904841,0.0684,84434.0,84433.0,0.4728347]
[1742069905331,0.1868333,84434.0,84433.0,0.4728347]
[1742069907423,0.0684,84434.0,84433.0,0.4728347]
[1742069912633,0.0684,84434.0,84433.0,0.68510239]
[1742069913536,0.0684,84434.0,84433.0,0.89510239]
[1742069916845,0.0684,84434.0,84433.0,0.6828347]
[1742069919944,0.036,84434.0,84433.0,0.6828347]
[1742069921241,0.0304,84438.0,84434.0,0.0592163]
[1742069921445,0.0331,84438.0,84437.0,0.1184291]
[1742069921633,0.0331,84438.0,84437.0,0.6384291]
[1742069922535,0.0361,84438.0,84437.0,0.6384291]
[1742069922736,0.0381,84438.0,84437.0,0.6384291]
[1742069924048,0.0381,84438.0,84437.0,0.7025291]
[1742069925342,0.005,84438.0,84437.0,0.7025291]
[1742069925544,0.0592092,84445.0,84437.0,0.7025291]
[1742069925545,0.1184102,84451.0,84450.0,0.1184108]
[1742069925844,0.1184102,84451.0,84450.0,0.3684108]
[1742069926251,0.1493102,84451.0,84450.0,0.3684108]
[1742069926545,0.0309,84451.0,84450.0,0.3684108]
[1742069926749,0.00060001,84456.0,84454.0,0.1184052]
[1742069926939,0.11857652,84459.0,84458.0,0.1183996]
[1742069927255,0.11857652,84459.0,84458.0,0.9391996]
[1742069927454,0.11857652,84459.0,84458.0,0.7191996]
[1742069927646,0.11857652,84459.0,84458.0,0.7823996]
[1742069929446,0.12357652,84459.0,84458.0,0.7823996]
[1742069930251,0.18617652,84459.0,84458.0,0.7823996]
[1742069930747,0.18617652,84459.0,84458.0,0.79641008]
[1742069932835,0.15357652,84459.0,84458.0,0.79641008]
[1742069933954,0.1775901,84463.0,84459.0,0.0591991]
[1742069934146,0.1775901,84463.0,84462.0,0.118394]
[1742069934344,0.1775901,84463.0,84462.0,0.368394]
[1742069935351,0.1835901,84463.0,84462.0,0.368394]
[1742069936050,0.1865901,84463.0,84462.0,0.118394]
[1742069936755,0.1835901,84463.0,84462.0,0.118394]
[1742069936946,0.1865901,84463.0,84462.0,0.118394]
[1742069943464,0.1865901,84463.0,84462.0,0.479194]
[1742069946355,0.1865901,84463.0,84462.0,0.3608]
[1742069946662,0.1776176,84451.0,84450.0,0.0592033]
[1742069946960,0.1776176,84451.0,84450.0,0.1876085]
[1742069947865,0.1776176,84451.0,84450.0,0.23237405]
[1742069948167,0.1826176,84451.0,84450.0,0.23237405]
[1742069949160,0.2133176,84451.0,84450.0,0.23237405]
[1742069950968,0.2133176,84451.0,84450.0,0.26397405]
[1742069951665,0.0949054,84451.0,84450.0,0.26397405]
[1742069951869,0.0642054,84451.0,84450.0,0.26397405]
[1742069952369,0.005,84451.0,84450.0,0.26397405]
[1742069953270,0.1234094,84451.0,84450.0,0.26397405]
[1742069956571,0.005,84451.0,84450.0,0.26397405]
[1742069957675,0.005,84451.0,84450.0,0.25397405]
[1742069958180,0.005,84451.0,84450.0,0.49397405]
[1742069959880,0.005,84451.0,84450.0,0.52627405]
[1742069960877,0.002,84451.0,84450.0,0.52627405]
[1742069961176,0.1184085,84452.0,84451.0,0.1184094]
[1742069961384,0.1184085,84452.0,84451.0,0.3684094]
[1742069961572,0.1184085,84452.0,84451.0,0.4318094]
[1742069962566,0.1814085,84452.0,84451.0,0.4318094]
[1742069964087,0.1814085,84452.0,84451.0,0.4328094]
[1742069964583,0.1824085,84452.0,84451.0,0.4328094]
[1742069965079,0.1508085,84452.0,84451.0,0.4328094]
[1742069965272,0.1194085,84452.0,84451.0,0.4651094]
[1742069965473,0.1194085,84452.0,84451.0,0.4641094]
[1742069965673,0.1194085,84452.0,84451.0,0.4318094]
[1742069966381,0.1821085,84452.0,84451.0,0.4318094]
[1742069966878,0.1821085,84452.0,84451.0,0.64398284]
[1742069969287,0.1821085,84452.0,84451.0,0.46217344]
[1742069969483,0.1821085,84452.0,84451.0,0.21217344]
[1742069969781,0.2970685,84452.0,84451.0,0.21217344]
[1742069970782,0.2970685,84452.0,84451.0,0.24267344]
[1742069971881,0.2970685,84452.0,84451.0,0.0305]
[1742069972091,0.2970685,84452.0,84451.0,0.0618]
[1742069972989,0.2970685,84452.0,84451.0,0.1802094]
[1742069976901,0.2970685,84452.0,84451.0,0.2123094]
[1742069984401,0.2970685,84452.0,84451.0,0.0618]
[1742069986600,0.6578685,84452.0,84451.0,0.0618]
[1742069989910,0.6578685,84452.0,84451.0,0.1802094]
[1742069991805,0.6578685,84452.0,84451.0,0.2134094]
[1742069993405,0.2970685,84452.0,84451.0,0.2134094]
[1742069993604,0.6578685,84452.0,84451.0,0.2134094]
[1742069996307,0.6578685,84452.0,84451.0,0.095]
[1742069996508,0.6578685,84452.0,84451.0,0.1802094]
[1742069999109,0.9378685,84452.0,84451.0,0.1802094]
[1742070000100,0.9378685,84452.0,84451.0,0.0618]
[1742070001502,0.9378685,84452.0,84451.0,0.1802094]
[1742070003119,0.6578685,84452.0,84451.0,0.1802094]
[1742070003807,0.6270685,84452.0,84451.0,0.1802094]
[1742070005013,0.5951685,84452.0,84451.0,0.1802094]
[1742070008611,0.5951685,84452.0,84451.0,0.0618]
[1742070009005,0.6573685,84452.0,84451.0,0.0618]
[1742070012914,0.6273685,84452.0,84451.0,0.0618]
[1742070013621,0.5951685,84452.0,84451.0,0.0618]
[1742070015316,0.5951685,84452.0,84451.0,0.1802094]
[1742070016610,0.4802085,84452.0,84451.0,0.1802094]
[1742070016811,0.4802085,84452.0,84451.0,0.1902094]
[1742070018419,0.4792085,84452.0,84451.0,0.1902094]
[1742070018625,0.4802085,84452.0,84451.0,0.1902094]
[1742070019312,0.4792085,84452.0,84451.0,0.1902094]
[1742070019511,0.4802085,84452.0,84451.0,0.1902094]
[1742070021527,0.4802085,84452.0,84451.0,0.1912094]
[1742070021819,0.4792085,84452.0,84451.0,0.1912094]
[1742070022224,0.4792085,84452.0,84451.0,0.1902094]
[1742070022413,0.4802085,84452.0,84451.0,0.1902094]
[1742070024228,0.001,84452.0,84451.0,0.1902094]
[1742070024415,4e-05,84453.0,84452.0,0.118408]
[1742070024618,4e-05,84453.0,84452.0,0.588408]
[1742070024824,0.1183982,84460.0,84459.0,0.1183968]
[1742070025126,0.1183982,84460.0,84459.0,0.7191968]
[1742070026224,0.1203982,84460.0,84459.0,0.7191968]
[1742070027628,0.1233982,84460.0,84459.0,0.7191968]
[1742070029118,0.1557982,84460.0,84459.0,0.7191968]
[1742070029425,0.1889982,84460.0,84459.0,0.7191968]
[1742070031122,0.2208982,84460.0,84459.0,0.7191968]
[1742070035023,0.2208982,84460.0,84459.0,0.6008]
[1742070035226,0.4508982,84460.0,84459.0,0.24]
[1742070035546,0.1184094,84451.0,84450.0,0.4032216]
[1742070035723,0.1184094,84451.0,84450.0,0.2848122]
[1742070036322,0.1820094,84451.0,84450.0,0.2848122]
[1742070037231,0.1820094,84451.0,84450.0,0.07267025]
[1742070038030,0.1830094,84451.0,84450.0,0.10277025]
[1742070038729,0.1830094,84451.0,84450.0,0.04356555]
[1742070039119,0.1830094,84451.0,84450.0,0.16197635]
[1742070039624,0.1830094,84451.0,84450.0,0.04356555]
[1742070039830,0.1830094,84451.0,84450.0,0.16197635]
[1742070048831,0.1194094,84451.0,84450.0,0.16197635]
[1742070049039,0.1194094,84451.0,84450.0,0.19407635]
[1742070050136,0.1851094,84451.0,84450.0,0.19407635]
[1742070060851,0.1522094,84451.0,84450.0,0.07566555]
[1742070061034,0.1522094,84451.0,84450.0,0.04356555]
[1742070061233,0.1522094,84451.0,84450.0,0.16197635]
[1742070061634,0.1827094,84451.0,84450.0,0.16197635]
[1742070062139,0.4427094,84451.0,84450.0,0.04356555]
[1742070063532,0.1827094,84451.0,84450.0,0.04356555]
[1742070064344,0.4427094,84451.0,84450.0,0.04356555]
[1742070064944,0.1827094,84451.0,84450.0,0.04356555]
[1742070065142,0.1827094,84451.0,84450.0,0.07406555]
[1742070065341,0.1827094,84451.0,84450.0,0.10636555]
[1742070066642,0.1194094,84451.0,84450.0,0.22477635]
[1742070066942,0.001,84451.0,84450.0,0.42477635]
[1742070067936,0.1194094,84451.0,84450.0,0.42477635]
[1742070075451,0.1802094,84451.0,84450.0,0.42477635]
[1742070076055,0.1501094,84451.0,84450.0,0.42477635]
[1742070076458,0.1194094,84451.0,84450.0,0.42477635]
[1742070082064,0.1194094,84451.0,84450.0,0.42577635]
[1742070082654,0.1184094,84451.0,84450.0,0.42577635]
[1742070083458,0.1194094,84451.0,84450.0,0.42577635]
[1742070084059,0.1194094,84451.0,84450.0,0.27686555]
[1742070084562,0.1194094,84451.0,84450.0,0.27586555]
[1742070085061,0.13042398,84451.0,84450.0,0.27586555]
[1742070085463,0.13042398,84451.0,84450.0,0.39427635]
[1742070085762,0.19402398,84451.0,84450.0,0.39427635]
[1742070086266,0.19402398,84451.0,84450.0,0.27586555]
[1742070087568,0.19402398,84451.0,84450.0,0.39427635]
[1742070089185,0.19427379,84451.0,84450.0,0.39427635]
[1742070089579,0.1830094,84451.0,84450.0,0.39427635]
[1742070089780,0.19427379,84451.0,84450.0,0.39427635]
[1742070089984,0.1830094,84451.0,84450.0,0.39427635]
[1742070090482,0.1830094,84451.0,84450.0,0.27586555]
[1742070090680,0.19430708,84451.0,84450.0,0.23884785]
[1742070090983,0.19430708,84451.0,84450.0,0.37344875]
[1742070091179,0.20560463,84451.0,84450.0,0.37344875]
[1742070091587,0.22385475,84451.0,84450.0,0.34679525]
[1742070092482,0.20560463,84451.0,84450.0,0.22838445]
[1742070094785,0.20560463,84451.0,84450.0,0.26118445]
[1742070095682,0.20560463,84451.0,84450.0,0.37959525]
[1742070096692,0.20554381,84451.0,84450.0,0.37959525]
[1742070097490,0.20924557,84451.0,84450.0,0.37959525]
[1742070097694,0.22756552,84451.0,84450.0,0.37959525]
[1742070098587,0.22756552,84451.0,84450.0,0.26118445]
[1742070099379,0.22770714,84451.0,84450.0,0.22416678]
[1742070099882,0.22770714,84451.0,84450.0,0.34257758]
[1742070100591,0.22770714,84451.0,84450.0,0.30555991]
[1742070100894,0.2057295,84451.0,84450.0,0.1674009]
[1742070105386,0.1421295,84451.0,84450.0,0.1674009]
[1742070108783,0.0237201,84451.0,84450.0,0.2274009]
[1742070109100,0.1421295,84451.0,84450.0,0.2274009]
[1742070111997,0.14181961,84451.0,84450.0,0.2274009]
[1742070112602,0.20401961,84451.0,84450.0,0.2274009]
[1742070112802,0.20401961,84451.0,84450.0,0.19038373]
[1742070114592,0.20401961,84451.0,84450.0,0.20583395]
[1742070116604,0.20401961,84451.0,84450.0,0.08742315]
[1742070117206,0.20401961,84451.0,84450.0,0.20583395]
[1742070120307,0.17221961,84451.0,84450.0,0.20583395]
[1742070122000,0.17218738,84451.0,84450.0,0.20583395]
[1742070123795,0.17218738,84451.0,84450.0,0.16881679]
[1742070123997,0.1722439,84451.0,84450.0,0.16881679]
[1742070128592,0.17200148,84451.0,84450.0,0.16881679]
[1742070130000,0.17196578,84451.0,84450.0,0.16881679]
[1742070131012,0.20446578,84451.0,84450.0,0.16881679]
[1742070131602,0.20816746,84451.0,84450.0,0.13179998]
[1742070131913,0.20816746,84451.0,84450.0,0.11514788]
[1742070131914,0.2270227,84451.0,84450.0,0.11514788]
[1742070133503,0.0761133,84451.0,84450.0,0.11514788]
[1742070133703,0.0457133,84451.0,84450.0,0.32064529]
[1742070133916,0.1183979,84460.0,84459.0,0.1183968]
[1742070134114,0.1183979,84460.0,84459.0,0.7291968]
[1742070134706,0.1505979,84460.0,84459.0,0.7291968]
[1742070134918,0.1811979,84460.0,84459.0,0.7291968]
[1742070135414,0.1851979,84460.0,84459.0,0.7291968]
[1742070137015,0.1851979,84460.0,84459.0,0.6108]
[1742070137401,0.1831979,84460.0,84459.0,0.6108]
[1742070137619,0.1831979,84460.0,84459.0,0.3683982]
[1742070138217,0.1821979,84460.0,84459.0,0.3683982]
[1742070141926,0.1821979,84460.0,84459.0,0.33138549]
[1742070145820,0.1821979,84460.0,84459.0,0.21298729]
[1742070146334,0.1821979,84460.0,84459.0,0.24378729]
[1742070146631,0.18589917,84460.0,84459.0,0.36218549]
[1742070147821,0.18489917,84460.0,84459.0,0.36218549]
[1742070148032,0.18589917,84460.0,84459.0,0.36218549]
[1742070152834,0.18589917,84460.0,84459.0,0.32517093]
[1742070153930,0.1821979,84460.0,84459.0,0.32517093]
[1742070154135,0.1821979,84460.0,84459.0,0.20677273]
[1742070154528,0.0332,84460.0,84459.0,0.57517093]
[1742070154733,0.1515968,84460.0,84459.0,0.60677093]
[1742070155631,0.0332,84460.0,84459.0,0.60677093]
[1742070156638,0.0332,84460.0,84459.0,0.62677093]
[1742070157033,0.1515968,84460.0,84459.0,0.60677093]
[1742070157433,0.1515968,84460.0,84459.0,0.35677093]
[1742070171452,0.1515968,84460.0,84459.0,0.23837273]
[1742070171648,0.1515968,84460.0,84459.0,0.35677093]
[1742070172050,0.1515968,84460.0,84459.0,0.23837273]
[1742070172247,0.1515968,84460.0,84459.0,0.35677093]
[1742070172744,0.1515968,84460.0,84459.0,0.23837273]
[1742070172939,0.1515968,84460.0,84459.0,0.35677093]
[1742070173340,0.1515968,84460.0,84459.0,0.32517093]
[1742070192679,0.1515968,84460.0,84459.0,0.35687093]
[1742070195674,0.001,84460.0,84459.0,0.35687093]
[1742070195876,0.1193968,84460.0,84459.0,0.35687093]
[1742070196776,0.1508968,84460.0,84459.0,0.35687093]
[1742070200492,0.1820968,84460.0,84459.0,0.35687093]
[1742070200688,0.1508968,84460.0,84459.0,0.35687093]
[1742070205988,0.1508968,84460.0,84459.0,0.35687093]
[1742070207590,0.1837968,84460.0,84459.0,0.35687093]
[1742070207893,0.1508968,84460.0,84459.0,0.35687093]
[1742070209184,0.1837968,84460.0,84459.0,0.35687093]
[1742070212381,0.4137968,84460.0,84459.0,0.17597273]
[1742070212589,0.4137968,84460.0,84456.0,0.21214195]
[1742070212590,0.118401,84457.0,84456.0,0.21214195]
[1742070212902,0.118401,84457.0,84452.0,0.28285594]
[1742070212903,0.1184066,84453.0,84452.0,0.28285594]
[1742070213089,0.5038066,84453.0,84452.0,0.28285594]
[1742070213798,0.5339066,84453.0,84452.0,0.28285594]
[1742070213992,0.5643066,84453.0,84452.0,0.28285594]
[1742070214393,0.5643066,84453.0,84452.0,0.28485594]
[1742070214589,0.5643066,84453.0,84452.0,0.28585594]
[1742070214793,0.9251066,84453.0,84452.0,0.003]
[1742070222787,0.6551066,84453.0,84452.0,0.003]
[1742070229998,0.6551066,84453.0,84452.0,0.035]
[1742070230397,0.6551066,84453.0,84452.0,0.003]
[1742070231394,0.2943066,84453.0,84452.0,0.003]
[1742070231595,0.6551066,84453.0,84452.0,0.003]
[1742070233007,0.6551066,84453.0,84452.0,0.034]
[1742070234807,0.6551066,84453.0,84452.0,0.0653]
[1742070241911,0.6551066,84453.0,84452.0,0.183708]
[1742070243097,0.6551066,84453.0,84452.0,0.0653]
[1742070253205,0.2943066,84453.0,84452.0,0.0653]
[1742070253400,0.6551066,84453.0,84452.0,0.0653]
[1742070255313,0.6240066,84453.0,84452.0,0.0653]
[1742070255509,0.4782066,84453.0,84452.0,0.0653]
[1742070256518,0.1506066,84453.0,84452.0,0.0653]
[1742070256715,0.1506066,84453.0,84452.0,0.183708]
[1742070257018,0.1506066,84453.0,84452.0,0.0653]
[1742070257314,0.1816066,84453.0,84452.0,0.183708]
[1742070259322,0.1816066,84453.0,84452.0,0.0653]
[1742070259628,0.1816066,84453.0,84452.0,0.183708]
[1742070260517,0.1506066,84453.0,84452.0,0.183708]
[1742070260921,0.1506066,84453.0,84452.0,0.181708]
[1742070261116,0.1506066,84453.0,84452.0,0.182708]
[1742070263817,0.1836066,84453.0,84452.0,0.182708]
[1742070265330,0.1836066,84453.0,84452.0,0.213508]
[1742070266932,0.1836066,84453.0,84452.0,0.0951]
[1742070271029,0.1836066,84453.0,84452.0,0.213508]
[1742070271433,0.1836066,84453.0,84452.0,0.0951]
[1742070272827,0.1836066,84453.0,84452.0,0.213508]
[1742070276435,0.1836066,84453.0,84452.0,0.0951]
[1742070276633,0.1836066,84453.0,84452.0,0.213508]
[1742070276836,0.4236066,84453.0,84452.0,0.033]
[1742070282924,0.7844066,84453.0,84452.0,0.033]
[1742070283124,0.5444066,84453.0,84452.0,0.033]
[1742070283733,0.8244066,84453.0,84452.0,0.033]
[1742070283937,0.1184207,84443.0,84442.0,0.00017772]
[1742070284125,0.7592207,84443.0,84442.0,0.00017772]
[1742070284836,0.8211207,84443.0,84442.0,0.00017772]
[1742070285027,0.8211207,84443.0,84442.0,0.00417772]
[1742070285219,0.8211207,84443.0,84442.0,0.00817772]
[1742070286332,0.8211207,84443.0,84442.0,0.02499911]
[1742070286526,0.8211207,84443.0,84442.0,0.02099911]
[1742070286721,0.8211207,84443.0,84442.0,0.02399911]
[1742070290736,0.4603207,84443.0,84442.0,0.02399911]
[1742070291036,0.8211207,84443.0,84442.0,0.02399911]
[1742070291347,0.8211207,84443.0,84442.0,0.02299911]
[1742070295645,0.7811207,84443.0,84442.0,0.02299911]
[1742070295846,0.5411207,84443.0,84442.0,0.02299911]
[1742070296048,0.5411207,84443.0,84442.0,0.14142121]
[1742070296743,0.5411207,84443.0,84442.0,0.17192121]
[1742070296944,0.5411207,84443.0,84442.0,0.08439911]
[1742070297538,0.7377207,84443.0,84442.0,0.08439911]
[1742070297739,0.5411207,84443.0,84442.0,0.08439911]
[1742070298451,0.5411207,84443.0,84442.0,0.20282121]
[1742070300649,0.1494207,84443.0,84442.0,0.20282121]
[1742070302454,0.1494207,84443.0,84442.0,0.08439911]
[1742070302749,0.1795207,84443.0,84442.0,0.08439911]
[1742070305553,0.1795207,84443.0,84442.0,0.20282121]
[1742070306642,0.1795207,84443.0,84442.0,0.08439911]
[1742070307453,0.1795207,84443.0,84442.0,0.20282121]
[1742070309255,0.1795207,84443.0,84442.0,0.08439911]
[1742070315356,0.5403207,84443.0,84442.0,0.08439911]
[1742070319971,0.7803207,84443.0,84442.0,0.08439911]
[1742070321093,0.5403207,84443.0,84442.0,0.08439911]
[1742070321791,0.5102207,84443.0,84442.0,0.20282121]
[1742070322387,0.4792207,84443.0,84442.0,0.20282121]
[1742070322688,0.5095207,84443.0,84442.0,0.20282121]
[1742070323096,0.5095207,84443.0,84442.0,0.08439911]
[1742070323786,0.5095207,84443.0,84442.0,0.20282121]
[1742070324790,0.1487207,84443.0,84442.0,0.20282121]
[1742070324995,0.1184207,84443.0,84442.0,0.26282121]
[1742070325385,0.1184207,84443.0,84442.0,0.20282121]
[1742070329995,0.1502207,84443.0,84442.0,0.20282121]
[1742070330182,0.1502207,84443.0,84442.0,0.46282121]
[1742070334695,0.1184207,84443.0,84442.0,0.46282121]
[1742070334906,4e-05,84444.0,84442.0,0.46282121]
[1742070334907,0.1184593,84444.0,84443.0,0.1184207]
[1742070335098,0.1184193,84444.0,84443.0,0.3912207]
[1742070335705,0.1184193,84444.0,84443.0,0.4218207]
[1742070337104,0.1506193,84444.0,84443.0,0.4218207]
[1742070337315,0.1506193,84444.0,84443.0,0.4248207]
[1742070337804,0.1506193,84444.0,84443.0,0.4278207]
[1742070340407,0.1506193,84444.0,84443.0,0.4600207]
[1742070349410,0.1825193,84444.0,84443.0,0.4600207]
[1742070351409,0.1506193,84444.0,84443.0,0.4600207]
[1742070360508,0.03187761,84451.0,84447.0,0.0592072]
[1742070360713,0.15028701,84451.0,84450.0,0.1184108]
[1742070360910,0.15028701,84451.0,84450.0,0.1884108]
[1742070361119,0.15028701,84451.0,84450.0,0.2541108]
[1742070361812,0.15028701,84451.0,84450.0,0.2551108]
[1742070364229,0.21258701,84451.0,84450.0,0.2551108]
[1742070364724,0.21258701,84451.0,84450.0,0.2561108]
[1742070365920,0.21258701,84451.0,84450.0,0.2231108]
[1742070367427,0.21258701,84451.0,84450.0,0.1047]
[1742070367626,0.48258701,84451.0,84450.0,0.1047]
[1742070370429,0.48258701,84451.0,84450.0,0.2231108]
[1742070373620,0.21258701,84451.0,84450.0,0.2231108]
[1742070376032,0.15068701,84451.0,84450.0,0.2231108]
[1742070376227,0.03227761,84451.0,84450.0,0.2231108]
[1742070376534,0.15068701,84451.0,84450.0,0.2231108]
[1742070377236,4e-05,84459.0,84458.0,0.1183996]
[1742070377536,4e-05,84459.0,84458.0,0.6283996]
[1742070377537,0.1184382,84459.0,84458.0,0.6283996]
[1742070378034,0.1183982,84459.0,84458.0,0.6283996]
[1742070378217,0.1183982,84459.0,84458.0,0.6939996]
[1742070378636,0.1193982,84459.0,84458.0,0.6939996]
[1742070379726,0.1193982,84459.0,84458.0,0.6949996]
[1742070380126,0.1193982,84459.0,84458.0,0.4449996]
[1742070380331,0.1491982,84459.0,84458.0,0.4449996]
[1742070380636,0.1491982,84459.0,84458.0,0.4459996]
[1742070382930,0.1491982,84459.0,84458.0,0.4439996]
[1742070383236,0.1491982,84459.0,84458.0,0.4449996]
[1742070383828,0.1491982,84459.0,84458.0,0.4459996]
[1742070391960,0.1491982,84459.0,84458.0,0.4439996]
[1742070392248,0.1491982,84459.0,84458.0,0.4459996]
[1742070393250,0.1491982,84459.0,84458.0,0.3276]
[1742070393448,0.1796982,84459.0,84458.0,0.3276]
[1742070393653,0.1796982,84459.0,84458.0,0.3266]
[1742070394338,0.1796982,84459.0,84458.0,0.3256]
[1742070394542,0.1796982,84459.0,84458.0,0.3266]
[1742070395251,0.1796982,84459.0,84458.0,0.4449996]
[1742070408954,0.1491982,84459.0,84458.0,0.4449996]
[1742070411964,0.1491982,84459.0,84458.0,0.4439996]
[1742070412165,0.1491982,84459.0,84458.0,0.4459996]
[1742070413567,0.1491982,84459.0,84458.0,0.4449996]
[1742070416070,0.1491982,84459.0,84458.0,0.3266]
[1742070416251,0.1491982,84459.0,84458.0,0.001]
[1742070416252,0.4291982,84459.0,84458.0,0.001]
[1742070417869,0.4592982,84459.0,84458.0,0.001]
[1742070421065,0.4592982,84459.0,84449.0,0.1184114]
[1742070421066,0.1184108,84450.0,84449.0,0.1184114]
[1742070421371,0.1184108,84450.0,84449.0,0.01]
[1742070421761,0.1184108,84450.0,84449.0,0.0419]
[1742070421979,0.1811108,84450.0,84449.0,0.1603122]
[1742070422173,0.1811108,84450.0,84449.0,0.1643122]
[1742070422759,0.1811108,84450.0,84449.0,0.1653122]
[1742070424368,0.4511108,84450.0,84449.0,0.0369]
[1742070424574,0.4511108,84450.0,84449.0,0.005]
[1742070426068,0.8119108,84450.0,84449.0,0.005]
[1742070428175,0.1184193,84444.0,84443.0,0.0313]
[1742070428360,0.1184207,84443.0,84442.0,0.01699911]
[1742070428563,0.8145207,84443.0,84442.0,0.04789911]
[1742070429377,0.8115207,84443.0,84442.0,0.04789911]
[1742070430573,0.8115207,84443.0,84442.0,0.05089911]
[1742070431086,0.8065207,84443.0,84442.0,0.05089911]
[1742070431376,0.8065207,84443.0,84442.0,0.08339911]
[1742070431776,0.8065207,84443.0,84442.0,0.08839911]
[1742070432362,0.9224007,84443.0,84442.0,0.08839911]
[1742070435470,0.9224007,84443.0,84442.0,0.20682121]
[1742070435678,0.8910007,84443.0,84442.0,0.20682121]
[1742070435882,0.6510007,84443.0,84442.0,0.23722121]
[1742070436879,0.6510007,84443.0,84442.0,0.11879911]
[1742070437768,0.6510007,84443.0,84442.0,0.23722121]
[1742070438076,0.6510007,84443.0,84442.0,0.11879911]
[1742070439471,0.6510007,84443.0,84442.0,0.23722121]
[1742070440283,0.6510007,84443.0,84442.0,0.11879911]
[1742070444281,0.5871007,84443.0,84442.0,0.11879911]
[1742070444488,0.5871007,84443.0,84442.0,0.23722121]
[1742070444980,0.5871007,84443.0,84442.0,0.11879911]
[1742070446590,0.5871007,84443.0,84442.0,0.11879911]
[1742070447285,0.2263007,84443.0,84442.0,0.11879911]
[1742070447487,0.5871007,84443.0,84442.0,0.11879911]
[1742070450081,0.6183007,84443.0,84442.0,0.11879911]
[1742070450581,0.2575007,84443.0,84442.0,0.11879911]
[1742070450782,0.6183007,84443.0,84442.0,0.11879911]
[1742070451177,0.2575007,84443.0,84442.0,0.11879911]
[1742070451386,0.6500007,84443.0,84442.0,0.11879911]
[1742070452190,0.2892007,84443.0,84442.0,0.11879911]
[1742070452491,0.6500007,84443.0,84442.0,0.11879911]
[1742070453692,0.6500007,84443.0,84442.0,0.23722121]
[1742070453693,0.5871007,84443.0,84442.0,0.23722121]
[1742070453989,0.4712207,84443.0,84442.0,0.45722121]
[1742070460098,0.5031207,84443.0,84442.0,0.45622121]
[1742070460793,0.5031207,84443.0,84442.0,0.45522121]
[1742070461795,0.5031207,84443.0,84442.0,0.33679911]
[1742070462198,0.5031207,84443.0,84442.0,0.45522121]
[1742070462399,0.5031207,84443.0,84442.0,0.33679911]
[1742070463695,0.5031207,84443.0,84442.0,0.33479911]
[1742070463895,0.5031207,84443.0,84442.0,0.33679911]
[1742070465501,0.5031207,84443.0,84442.0,0.45522121]
[1742070466800,0.5361207,84443.0,84442.0,0.45522121]
[1742070473609,0.5361207,84443.0,84442.0,0.33679911]
[1742070475513,0.1753207,84443.0,84442.0,0.33679911]
[1742070476201,0.1753207,84443.0,84442.0,0.30639911]
[1742070476402,0.1753207,84443.0,84442.0,0.24299911]
[1742070476609,0.4253207,84443.0,84442.0,0.24299911]
[1742070477313,0.4253207,84443.0,84442.0,0.23699911]
[1742070477502,0.4253207,84443.0,84442.0,0.23899911]
[1742070479011,0.1753207,84443.0,84442.0,0.23899911]
[1742070479208,0.1753207,84443.0,84442.0,0.35742121]
[1742070479609,0.1753207,84443.0,84442.0,0.41862121]
[1742070484926,0.1753207,84443.0,84442.0,0.19862121]
[1742070485523,0.1753207,84443.0,84442.0,0.20862121]
[1742070488530,0.1104207,84443.0,84442.0,0.42862121]
[1742070489232,0.1104207,84443.0,84442.0,0.64862121]
[1742070489432,0.1104207,84443.0,84442.0,0.42862121]